bitfinex/quotes_ETHUSD_20251026
["timestamp","ask_amount","ask_price","bid_price","bid_amount"]
[1761471847821,8.5010306,3989.4,3989.3,0.002]
[1761471856134,8.4020306,3989.4,3989.3,0.002]
[1761471856340,8.5010306,3989.4,3989.3,0.002]
[1761471857114,9.17460612,3989.4,3989.3,0.002]
[1761471857645,5.388508,3989.4,3989.3,0.002]
[1761471857803,5.514108,3989.4,3989.3,0.002]
[1761471858003,6.020988,3989.4,3989.3,0.002]
[1761471858930,8.5276306,3989.4,3989.3,0.002]
[1761471859857,6.020988,3989.4,3989.3,0.002]
[1761471861458,15.79056352,3989.4,3988.7,0.002]
[1761471861655,4.75349965,3988.8,3988.7,0.002]
[1761471861960,8.03649965,3988.8,3988.7,0.002]
[1761471862261,10.77239965,3988.8,3988.7,0.002]
[1761471862437,11.67363232,3988.8,3988.7,0.002]
[1761471862636,14.27556295,3988.8,3988.7,0.002]
[1761471863660,11.63956295,3988.8,3988.7,0.002]
[1761471863848,10.73833028,3988.8,3988.7,0.002]
[1761471864237,11.63956295,3988.8,3988.7,0.002]
[1761471864436,10.73833028,3988.8,3988.7,0.002]
[1761471865627,10.63843028,3988.8,3988.7,0.002]
[1761471865838,5.0226,3988.8,3988.7,0.002]
[1761471866059,3.283,3988.8,3988.7,0.002]
[1761471866259,3.78988,3988.8,3988.7,0.002]
[1761471866459,3.78988,3988.8,3988.7,0.4326]
[1761471866761,7.85209965,3988.8,3988.7,0.002]
[1761471866959,8.54928828,3988.8,3988.7,0.002]
[1761471867622,6.04126863,3988.8,3988.7,0.002]
[1761471869861,8.54828828,3988.8,3988.7,0.002]
[1761471870872,12.06955874,3988.8,3988.7,0.002]
[1761471871548,12.19515874,3988.8,3988.7,0.002]
[1761471875074,2.37798863,3988.8,3988.7,0.002]
[1761471875377,2.37798863,3988.8,3988.7,0.4326]
[1761471875378,4.9608,3988.8,3988.7,0.4326]
[1761471876038,3.4056,3988.8,3988.7,0.4326]
[1761471884650,0.1256,3988.8,3988.7,0.4326]
[1761471885057,3.278,3988.8,3988.7,0.4326]
[1761471893621,0.001,3989.4,3988.7,0.4326]
[1761471893923,3.276,3989.1,3988.7,0.4326]
[1761471895077,0.1256,3988.8,3988.7,0.4326]
[1761471900032,0.1266,3988.9,3988.7,0.4326]
[1761471900831,0.1266,3988.9,3988.7,3.95387046]
[1761471900832,0.001,3988.9,3988.7,3.95387046]
[1761471901120,0.001,3988.9,3988.8,3.60872658]
[1761471902324,0.001,3988.9,3988.8,3.63379677]
[1761471902488,0.001,3988.9,3988.8,5.16392658]
[1761471903387,0.001,3988.9,3988.8,0.4552]
[1761471909808,0.001,3988.9,3988.8,3.97647046]
[1761471911030,0.001,3988.9,3988.8,6.60909011]
[1761471911542,0.001,3988.9,3988.8,4.10207046]
[1761471912114,0.001,3988.9,3988.8,6.60909011]
[1761471912320,0.001,3988.9,3988.7,3.273]
[1761471912321,0.001,3988.9,3988.7,0.002]
[1761471913033,0.001,3988.9,3988.7,0.4736]
[1761471913231,0.001,3988.9,3988.7,0.002]
[1761471914835,0.001,3988.9,3988.7,0.4736]
[1761471915331,0.001,3988.9,3988.7,0.002]
[1761471918838,0.0999,3988.8,3988.7,0.002]
[1761471919019,0.61763705,3988.8,3988.7,0.002]
[1761471919531,0.51773705,3988.8,3988.7,0.002]
[1761471920431,0.001,3988.9,3988.7,0.002]
[1761471922301,0.1256,3988.8,3988.7,0.002]
[1761471922502,0.2255,3988.8,3988.7,0.002]
[1761471923021,3.4935,3988.8,3988.7,0.002]
[1761471923223,8.06259965,3988.8,3988.7,0.002]
[1761471923538,9.70517106,3988.8,3988.7,0.002]
[1761471924107,9.80552971,3988.8,3988.7,0.002]
[1761471924945,9.70517106,3988.8,3988.7,0.002]
[1761471929550,4.5691625,3988.7,3988.6,0.002]
[1761471929754,10.98845442,3988.7,3988.6,0.002]
[1761471930043,11.66360928,3988.7,3988.6,0.002]
[1761471930445,10.98845442,3988.7,3988.6,0.002]
[1761471930648,4.56922536,3988.6,3988.5,0.002]
[1761471930822,3.01415108,3988.4,3988.3,0.002]
[1761471931016,4.79485108,3988.4,3988.3,0.002]
[1761471931744,2.636,3987.9,3986.1,0.2138]
[1761471931945,0.50688,3987.4,3986.2,0.4716]
[1761471932148,1.5552,3986.7,3986.1,0.2138]
[1761471932307,0.50688,3986.4,3986.1,0.2138]
[1761471932510,0.50688,3986.4,3985.8,0.4716]
[1761471933622,0.50688,3986.4,3985.0,0.2471031]
[1761471933820,0.50688,3986.2,3985.1,0.6854]
[1761471934048,3.267,3986.1,3985.1,0.6854]
[1761471934271,3.267,3986.1,3985.2,0.4716]
[1761471936148,3.267,3986.1,3985.1,0.2138]
[1761471936367,3.267,3986.1,3985.1,0.6854]
[1761471936527,1.07075527,3986.0,3985.1,0.6854]
[1761471936732,0.1836,3985.9,3985.1,0.6854]
[1761471937466,0.1836,3985.9,3985.2,0.4716]
[1761471939049,4.30001669,3985.3,3985.0,0.2471031]
[1761471939264,5.25120167,3985.2,3985.0,0.2471031]
[1761471940032,0.50688,3985.1,3985.0,0.2471031]
[1761471940277,4.57142731,3985.1,3985.0,0.2471031]
[1761471940444,2.16188,3985.1,3985.0,0.2471031]
[1761471940644,4.67122731,3985.1,3985.0,0.2471031]
[1761471940866,6.18886926,3985.1,3985.0,0.2471031]
[1761471941728,6.31446926,3985.1,3985.0,0.2471031]
[1761471943333,3.70532195,3985.1,3985.0,0.2471031]
[1761471944338,2.18768,3985.1,3985.0,0.2471031]
[1761471944534,6.58749669,3985.1,3985.0,0.2471031]
[1761471944768,9.096844,3985.1,3985.0,0.2471031]
[1761471945536,8.971244,3985.1,3985.0,0.2471031]
[1761471945731,9.096844,3985.1,3985.0,0.2471031]
[1761471945996,10.62705113,3985.1,3985.0,0.2471031]
[1761471946359,0.50688,3984.0,3983.0,0.6754]
[1761471946563,3.266,3983.9,3983.0,0.6754]
[1761471946772,3.266,3983.9,3983.1,0.4616]
[1761471948386,1.5552,3983.8,3983.1,0.4616]
[1761471948879,2.03732,3983.8,3983.1,0.4616]
[1761471949243,1.5552,3983.8,3983.1,0.4616]
[1761471950072,1.5552,3984.6,3983.1,0.4616]
[1761471950381,3.013,3984.7,3984.5,0.2196]
[1761471950698,3.013,3984.6,3984.5,0.2196]
[1761471950892,3.266,3984.6,3984.5,0.2196]
[1761471951207,3.266,3984.6,3984.5,0.6812]
[1761471951571,3.266,3984.6,3984.0,0.2196]
[1761471951901,3.266,3984.6,3984.5,0.4616]
[1761471953603,3.266,3984.6,3984.0,0.6812]
[1761471954009,3.266,3984.6,3984.1,0.4616]
[1761471954192,3.266,3984.6,3984.0,0.6812]
[1761471954370,3.266,3984.6,3984.1,0.4616]
[1761471954772,3.266,3984.6,3984.1,0.48669977]
[1761471955029,0.0998,3986.4,3984.1,2.99664688]
[1761471955302,1.5552,3986.1,3984.2,3.29312578]
[1761471955504,1.5552,3986.1,3984.5,2.5097218]
[1761471955707,1.5552,3985.9,3984.5,2.5097218]
[1761471955906,1.5552,3985.9,3984.6,0.4616]
[1761471956111,0.48202,3985.8,3984.6,0.4616]
[1761471956311,0.1256,3984.7,3984.6,0.4616]
[1761471957009,0.50688,3986.3,3984.6,0.4616]
[1761471957010,0.1882,3986.6,3984.6,2.97126219]
[1761471957173,0.1256,3985.1,3984.6,2.97126219]
[1761471957376,0.1256,3985.1,3984.7,0.77128622]
[1761471957608,0.1256,3985.3,3984.9,2.50942737]
[1761471957813,0.1256,3985.3,3984.7,0.5872]
[1761471957814,0.1256,3985.3,3985.0,2.50940368]
[1761471958316,0.1882,3986.6,3985.3,2.50920298]
[1761471958481,0.1256,3985.7,3985.3,2.50920298]
[1761471958815,0.1256,3985.7,3985.4,0.4616]
[1761471958987,3.265,3986.3,3985.4,0.4616]
[1761471959192,3.265,3986.3,3986.2,0.2196]
[1761471959397,0.3265,3986.3,3985.4,0.4616]
[1761471959590,0.1256,3985.7,3985.5,0.4616]
[1761471960110,0.1256,3985.7,3985.2,0.3452]
[1761471960111,3.264,3986.1,3985.6,0.4616]
[1761471961916,3.264,3986.1,3985.6,2.97063087]
[1761471962114,3.264,3986.1,3985.7,0.4483]
[1761471962412,2.63035231,3987.5,3985.7,0.4483]
[1761471962413,0.1225,3987.5,3985.7,0.4483]
[1761471962578,0.1225,3987.5,3985.9,2.50884306]
[1761471962579,3.264,3987.1,3985.9,2.50884306]
[1761471962778,0.3264,3987.0,3985.9,2.50884306]
[1761471963009,1.8816,3987.0,3986.0,2.95707142]
[1761471963210,1.8816,3987.0,3986.0,0.4483]
[1761471963411,1.8816,3987.0,3986.1,0.6634]
[1761471963909,1.8816,3987.0,3986.2,0.4483]
[1761471964086,0.51456,3986.9,3986.2,0.4483]
[1761471966628,2.50765357,3987.8,3986.2,0.4483]
[1761471966629,0.001,3988.0,3986.3,0.02508591]
[1761471966920,0.001,3988.0,3987.9,0.2151]
[1761471967105,1.5562,3988.0,3987.9,0.2151]
[1761471967313,1.5562,3988.0,3986.3,3.263]
[1761471967314,1.5562,3988.0,3987.3,0.2151]
[1761471967616,0.48192,3987.9,3987.3,0.2151]
[1761471967993,0.48192,3987.9,3987.1,0.4483]
[1761471968188,0.48192,3987.9,3987.1,0.6634]
[1761471968385,0.48192,3987.9,3987.1,0.2151]
[1761471968587,0.48192,3987.9,3986.2,0.331]
[1761471968920,0.530112,3987.8,3987.1,0.2153]
[1761471969419,0.530112,3987.8,3986.5,2.50846541]
[1761471969420,0.530112,3987.8,3986.5,0.456]
[1761471969618,0.530112,3987.8,3986.6,0.456]
[1761471970020,0.1256,3987.0,3986.6,0.456]
[1761471970319,0.530112,3987.8,3986.3,0.456]
[1761471970320,3.262,3987.4,3986.3,0.456]
[1761471970530,0.1256,3986.6,3986.2,0.456]
[1761471974323,0.1256,3986.6,3986.3,2.50853842]
[1761471974694,0.1256,3986.6,3986.4,0.456]
[1761471974898,0.1256,3986.6,3986.5,0.02508466]
[1761471975334,0.530112,3987.8,3986.5,0.02508466]
[1761471975540,0.001,3987.9,3986.6,0.456]
[1761471976069,0.001,3987.9,3986.8,2.50826143]
[1761471976222,0.001,3987.9,3986.9,0.456]
[1761471980220,0.001,3987.9,3987.8,0.2153]
[1761471980621,0.001,3987.9,3987.8,0.6713]
[1761471985425,0.001,3987.9,3987.8,3.17894832]
[1761471986230,0.001,3987.9,3987.8,0.6713]
[1761471986444,0.001,3987.9,3987.8,3.17894832]
[1761471986650,0.001,3987.9,3987.8,0.6713]
[1761471986955,0.001,3987.9,3987.8,3.30454832]
[1761471988149,0.001,3987.9,3987.8,3.88577993]
[1761471988558,0.001,3987.9,3987.8,1.37813161]
[1761471988745,0.001,3987.9,3987.8,0.7969]
[1761471990353,0.001,3987.9,3987.8,3.30454832]
[1761471997355,0.001,3987.9,3987.8,3.81142832]
[1761471997554,0.001,3987.9,3987.8,6.27171555]
[1761471997785,0.001,3987.9,3987.8,6.24663907]
[1761471997967,0.001,3987.9,3987.8,8.67803512]
[1761471998570,0.001,3987.9,3987.8,7.79802437]
[1761472000002,0.001,3987.9,3987.8,8.62162832]
[1761472000292,0.001,3987.9,3987.8,5.36662832]
[1761472000659,0.001,3987.9,3987.8,4.85974832]
[1761472000892,0.001,3987.9,3987.8,8.11474832]
[1761472004395,0.001,3987.9,3987.8,8.11374832]
[1761472004589,0.001,3987.9,3987.8,9.26389977]
[1761472008095,0.001,3987.9,3987.8,8.11374832]
[1761472014636,0.001,3987.9,3987.8,8.99375907]
[1761472016048,0.001,3987.9,3987.8,9.50063907]
[1761472016338,0.001,3987.9,3987.8,8.62062832]
[1761472021331,0.001,3987.9,3987.8,9.94132194]
[1761472021534,0.001,3987.9,3987.8,11.53815434]
[1761472021858,0.001,3987.9,3987.8,10.21746072]
[1761472022177,0.001,3987.9,3987.8,10.4964184]
[1761472026056,0.001,3988.7,3988.1,2.50745969]
[1761472026365,0.001,3988.7,3988.6,8.08847203]
[1761472026533,0.001,3988.7,3988.6,14.8567187]
[1761472026740,0.001,3988.7,3988.6,15.3134187]
[1761472027538,0.001,3989.7,3989.3,3.01358543]
[1761472027749,0.001,3989.7,3989.3,8.66174918]
[1761472027950,0.001,3989.7,3989.3,11.91074918]
[1761472028462,0.001,3989.7,3989.3,2.50670543]
[1761472028667,0.001,3989.7,3989.3,5.75570543]
[1761472030508,0.1011,3989.6,3989.3,3.248]
[1761472030676,0.1011,3989.6,3989.3,5.75470543]
[1761472031189,0.001,3989.6,3989.3,5.75470543]
[1761472031388,0.001,3989.6,3989.3,3.248]
[1761472031587,0.001,3989.6,3988.9,2.50689502]
[1761472031588,0.1011,3989.4,3989.1,2.5067889]
[1761472031792,0.1011,3989.4,3989.2,3.248]
[1761472032188,0.1011,3989.4,3989.2,5.754749]
[1761472032624,0.1011,3989.4,3989.2,3.248]
[1761472032922,0.1011,3989.4,3989.3,3.248]
[1761472033123,0.1011,3989.4,3989.2,3.248]
[1761472033480,0.1011,3989.4,3989.2,5.75475867]
[1761472034082,0.1011,3989.4,3989.3,2.50670543]
[1761472034083,0.001,3989.4,3989.3,2.50670543]
[1761472036725,0.001,3989.4,3989.3,2.53177248]
[1761472036891,0.001,3989.4,3989.3,2.50670543]
[1761472037091,0.001,3989.4,3989.3,2.63230543]
[1761472038781,0.001,3989.4,3989.3,4.37339055]
[1761472039031,0.001,3989.4,3989.3,5.87830543]
[1761472041527,0.001,3989.4,3989.3,6.31400543]
[1761472042233,0.001,3989.4,3989.3,6.82088543]
[1761472042434,0.001,3989.4,3989.3,8.37608543]
[1761472042588,0.001,3989.4,3989.3,9.2605353]
[1761472042933,0.001,3989.4,3989.3,10.94984355]
[1761472047046,0.001,3989.4,3989.3,10.34435136]
[1761472047245,0.001,3989.4,3989.3,11.96300792]
[1761472047414,0.001,3989.4,3989.3,10.63546415]
[1761472048116,0.001,3989.4,3989.3,10.88616415]
[1761472048421,0.001,3989.4,3989.3,10.63546415]
[1761472049517,0.001,3989.7,3989.6,3.01339694]
[1761472049717,0.001,3989.7,3989.6,14.02835194]
[1761472049917,0.001,3989.7,3989.6,14.56458678]
[1761472050126,0.001,3989.7,3989.6,14.56422362]
[1761472051523,0.001,3989.7,3989.6,14.27311083]
[1761472051733,0.001,3989.7,3989.6,15.86994323]
[1761472051964,0.001,3989.7,3989.6,15.59098555]
[1761472052343,0.001,3989.7,3989.6,14.83547307]
[1761472052544,0.001,3989.8,3989.7,4.56853411]
[1761472052725,0.001,3991.2,3990.1,8.35607611]
[1761472052924,0.001,3991.2,3990.1,14.26939886]
[1761472053173,0.001,3991.2,3990.1,13.38008224]
[1761472053372,0.001,3991.2,3990.1,12.94438224]
[1761472053545,0.099,3991.1,3990.1,13.38008224]
[1761472053745,0.001,3991.2,3990.1,13.38008224]
[1761472054077,0.1,3991.2,3990.1,13.38008224]
[1761472054483,0.1,3991.2,3990.1,9.70138224]
[1761472054628,0.1,3991.2,3989.7,3.01331665]
[1761472054629,0.1,3990.2,3989.7,0.88317123]
[1761472054829,0.1229,3990.1,3990.0,2.50626566]
[1761472055054,0.1229,3990.1,3990.0,5.74926566]
[1761472055488,0.001,3990.2,3990.1,2.50620285]
[1761472055653,0.001,3990.2,3990.1,2.53126487]
[1761472055852,0.001,3990.2,3990.1,2.50620285]
[1761472057139,0.001,3990.2,3990.1,4.2743297]
[1761472057390,0.001,3990.2,3990.1,3.8386297]
[1761472057740,0.001,3990.2,3990.1,3.3317497]
[1761472057945,0.001,3990.2,3990.1,5.74820285]
[1761472058369,0.1007,3990.2,3990.1,5.74820285]
[1761472058989,0.1007,3990.2,3990.1,3.242]
[1761472059545,0.1007,3990.2,3990.1,5.74820285]
[1761472060096,0.1007,3990.2,3990.1,3.242]
[1761472060403,0.1007,3990.2,3990.1,3.241]
[1761472060543,0.1007,3990.2,3990.1,5.74720285]
[1761472060993,0.001,3990.2,3990.1,5.74720285]
[1761472061374,0.001,3990.2,3990.1,7.89865597]
[1761472061542,0.001,3990.2,3990.1,9.45385597]
[1761472062294,0.1007,3990.2,3989.9,0.002]
[1761472062498,0.1007,3990.2,3990.1,2.50620285]
[1761472062708,0.1007,3990.2,3990.1,0.1256]
[1761472063008,0.1007,3990.2,3990.0,3.241]
[1761472063207,0.1007,3990.2,3990.0,0.1256]
[1761472065207,0.1007,3990.2,3990.0,2.63186251]
[1761472065709,0.001,3990.2,3990.0,0.1256]
[1761472065909,0.0997,3990.1,3990.0,0.1256]
[1761472066601,0.0997,3990.1,3989.9,3.243]
[1761472066780,0.0997,3990.1,3989.9,0.002]
[1761472069614,0.001,3990.2,3989.9,0.002]
[1761472069835,0.0997,3990.1,3989.9,0.002]
[1761472071945,0.10129549,3990.2,3989.9,0.002]
[1761472071946,0.001,3990.2,3989.9,0.002]
[1761472072123,0.0997,3990.1,3989.9,0.002]
[1761472076633,1.5552,3990.0,3989.9,0.002]
[1761472076828,1.82121467,3990.0,3989.9,0.002]
[1761472077029,1.92091467,3990.0,3989.9,0.002]
[1761472077946,0.36571467,3990.0,3989.9,0.002]
[1761472078252,0.20002467,3990.0,3989.9,0.002]
[1761472080022,0.10032467,3990.0,3989.9,0.002]
[1761472080349,0.22592467,3990.0,3989.9,0.002]
[1761472081766,0.001,3990.1,3990.0,2.50626566]
[1761472082117,0.001,3990.1,3990.0,3.07756566]
[1761472082317,0.001,3990.1,3990.0,3.63616105]
[1761472083049,0.001,3990.1,3990.0,0.68419539]
[1761472083252,0.001,3990.1,3989.9,0.002]
[1761472084139,0.001,3990.1,3989.9,2.50832227]
[1761472084451,0.001,3990.1,3990.0,2.95196566]
[1761472084749,0.001,3990.1,3990.0,3.07756566]
[1761472086059,0.001,3990.1,3990.0,2.63186566]
[1761472086265,0.001,3990.1,3990.0,3.46968907]
[1761472086450,0.001,3990.1,3990.0,6.70768907]
[1761472087672,0.001,3990.1,3990.0,7.15338907]
[1761472088050,0.001,3990.1,3990.0,7.66026907]
[1761472088573,0.001,3990.1,3989.9,0.002]
[1761472088738,0.001,3990.1,3990.0,2.97656566]
[1761472088933,0.001,3990.1,3990.0,6.21356566]
[1761472092147,0.001,3990.1,3990.0,6.20207566]
[1761472094181,0.001,3990.1,3990.0,5.74226566]
[1761472094391,0.001,3990.1,3989.9,0.002]
[1761472094680,0.001,3990.1,3990.0,5.74226566]
[1761472094893,0.001,3990.1,3990.0,2.50626566]
[1761472095790,0.001,3990.1,3990.0,2.50826566]
[1761472097193,0.1116,3990.1,3990.0,0.002]
[1761472097889,0.001,3990.1,3990.0,2.50826566]
[1761472098077,0.001,3990.1,3990.0,0.002]
[1761472098786,0.1116,3990.1,3990.0,0.002]
[1761472098974,0.001,3990.1,3990.0,0.002]
[1761472099808,0.001,3990.1,3990.0,2.50826566]
[1761472100009,0.001,3990.1,3990.0,0.002]
[1761472100604,0.001,3990.1,3990.0,2.50826566]
[1761472101517,0.001,3990.1,3990.0,2.63386566]
[1761472103958,0.001,3990.1,3990.0,3.10416566]
[1761472104596,0.001,3990.1,3990.0,2.63386566]
[1761472105125,0.001,3990.1,3990.0,7.50544697]
[1761472107837,0.001,3990.1,3990.0,10.73944697]
[1761472109120,0.001,3990.1,3990.0,13.11881798]
[1761472110241,0.001,3990.1,3990.0,17.96036143]
[1761472110409,0.001,3990.1,3990.0,14.4438346]
[1761472110612,0.001,3990.1,3990.0,17.96036143]
[1761472110835,0.001,3990.1,3990.0,16.63534481]
[1761472111142,0.001,3990.1,3990.0,13.11881798]
[1761472111304,0.001,3990.1,3990.0,9.28400014]
[1761472111510,0.001,3990.1,3990.0,12.80052697]
[1761472112612,0.001,3990.1,3990.0,14.12811679]
[1761472112814,0.001,3990.1,3990.0,12.80052697]
[1761472113758,0.001,3990.1,3990.0,8.81370014]
[1761472113913,0.001,3990.1,3990.0,5.86686566]
[1761472115014,0.001,3990.1,3990.0,6.33716566]
[1761472115423,0.001,3990.1,3990.0,5.86686566]
[1761472115620,0.001,3990.1,3990.0,2.63386566]
[1761472115831,0.001,3990.1,3990.0,5.86686566]
[1761472116221,0.001,3990.1,3990.0,2.63386566]
[1761472116421,0.001,3990.1,3990.0,5.86586566]
[1761472119328,0.001,3990.1,3990.0,9.38239249]
[1761472120358,0.001,3990.1,3990.0,9.81479249]
[1761472121458,0.001,3990.1,3990.0,9.38239249]
[1761472121662,0.001,3990.1,3990.0,12.64753078]
[1761472121958,0.001,3990.1,3990.0,16.67093761]
[1761472122260,0.001,3990.1,3990.0,13.15441078]
[1761472123170,0.001,3990.1,3990.0,12.72101078]
[1761472123338,0.001,3990.1,3990.0,13.15341078]
[1761472125768,0.001,3990.1,3990.0,7.70559249]
[1761472125972,0.001,3990.1,3990.0,10.93659249]
[1761472127773,0.001,3990.1,3990.0,7.42006566]
[1761472127977,0.001,3990.1,3990.0,0.1276]
[1761472128273,0.1007,3990.1,3990.0,3.3586]
[1761472128636,0.001,3990.1,3990.0,0.002]
[1761472128837,0.1007,3990.1,3990.0,0.002]
[1761472130982,0.001,3990.1,3990.0,0.002]
[1761472131550,0.1007,3990.1,3990.0,0.002]
[1761472131986,0.001,3990.1,3990.0,0.002]
[1761472132192,0.1007,3990.1,3990.0,0.002]
[1761472134357,0.46272268,3990.1,3990.0,0.002]
[1761472137259,5.24792268,3990.1,3990.0,0.002]
[1761472137663,11.77753236,3990.1,3990.0,0.002]
[1761472137874,8.26100553,3990.1,3990.0,0.002]
[1761472138872,11.90313236,3990.1,3990.0,0.002]
[1761472139083,8.38660553,3990.1,3990.0,0.002]
[1761472139268,8.48693725,3990.1,3990.0,0.002]
[1761472139474,8.48693725,3990.1,3987.7,2.6433065]
[1761472139475,2.50670543,3989.3,3986.7,3.51652683]
[1761472139788,2.50670543,3989.3,3986.0,2.74202084]
[1761472139789,11.31531226,3989.3,3987.0,3.51852683]
[1761472139986,11.41531226,3989.3,3987.0,6.0266358]
[1761472140209,11.41531226,3989.3,3987.0,0.002]
[1761472140512,0.50688,3988.6,3987.0,0.002]
[1761472140675,3.69952683,3987.9,3987.0,0.002]
[1761472141015,2.77055268,3987.9,3987.0,0.002]
[1761472141181,2.9718277,3987.9,3987.0,0.002]
[1761472141562,0.8088477,3987.9,3987.0,3.51852683]
[1761472141813,0.8088477,3987.9,3987.2,2.50802077]
[1761472141814,0.183,3987.9,3987.2,2.50802077]
[1761472141986,0.183,3987.9,3987.4,2.50988696]
[1761472142190,3.69952683,3987.9,3987.4,0.002]
[1761472142423,2.34598,3987.9,3987.4,0.002]
[1761472143606,4.85356544,3987.9,3987.4,0.002]
[1761472143779,2.34598,3987.9,3987.4,0.002]
[1761472144119,3.25523068,3987.9,3987.4,0.002]
[1761472144478,5.76281612,3987.9,3987.4,0.002]
[1761472144715,3.25523068,3987.9,3987.4,0.002]
[1761472145018,1.70003068,3987.9,3987.4,0.002]
[1761472145227,1.19315068,3987.9,3987.4,0.002]
[1761472145726,1.09225068,3987.9,3987.4,0.002]
[1761472146522,1.19315068,3987.9,3987.4,0.002]
[1761472148997,1.09225068,3987.9,3987.4,0.002]
[1761472149411,1.21785068,3987.9,3987.4,0.002]
[1761472150814,1.03485068,3987.9,3987.4,0.002]
[1761472151422,1.13655068,3987.9,3987.4,0.002]
[1761472155127,3.07303068,3987.9,3987.4,0.002]
[1761472155302,5.58061612,3987.9,3987.4,0.002]
[1761472155709,3.07303068,3987.9,3987.4,0.002]
[1761472155911,5.58061612,3987.9,3987.4,0.002]
[1761472157360,3.01471699,3987.5,3987.4,0.002]
[1761472157528,7.79991699,3987.5,3987.4,0.002]
[1761472157729,7.90161699,3987.5,3987.4,0.002]
[1761472161040,8.33761699,3987.5,3987.4,0.002]
[1761472161243,5.2212,3987.5,3987.4,0.002]
[1761472161448,6.48219195,3987.5,3987.4,0.002]
[1761472161643,6.58389195,3987.5,3987.4,0.002]
[1761472161945,9.59860894,3987.5,3987.4,0.002]
[1761472162748,7.09077195,3987.5,3987.4,0.002]
[1761472163145,9.59860894,3987.5,3987.4,0.002]
[1761472164326,6.98907195,3987.5,3987.4,0.002]
[1761472164533,7.09077195,3987.5,3987.4,0.002]
[1761472165151,7.21637195,3987.5,3987.4,0.002]
[1761472165361,7.11467195,3987.5,3987.4,0.002]
[1761472165874,6.67867195,3987.5,3987.4,0.002]
[1761472167972,9.28820894,3987.5,3987.4,0.002]
[1761472168173,6.67867195,3987.5,3987.4,0.002]
[1761472169445,3.44867195,3987.5,3987.4,0.002]
[1761472169648,6.67867195,3987.5,3987.4,0.002]
[1761472171865,6.78037195,3987.5,3987.4,0.002]
[1761472175422,9.28820894,3987.5,3987.4,0.002]
[1761472176963,6.78037195,3987.5,3987.4,0.002]
[1761472179237,9.95884355,3987.5,3987.4,0.002]
[1761472179530,15.74820894,3987.5,3987.4,0.002]
[1761472180036,18.38620894,3987.5,3987.4,0.002]
[1761472181133,15.74820894,3987.5,3987.4,0.002]
[1761472182624,16.64825499,3987.5,3987.4,0.002]
[1761472182825,15.74820894,3987.5,3987.4,0.002]
[1761472183241,15.64650894,3987.5,3987.4,0.002]
[1761472183650,6.17179195,3987.5,3987.4,0.002]
[1761472183853,9.28820894,3987.5,3987.4,0.002]
[1761472184017,9.18650894,3987.5,3987.4,0.002]
[1761472184423,9.86200167,3987.5,3987.4,0.002]
[1761472184823,7.35416468,3987.5,3987.4,0.002]
[1761472185152,9.86200167,3987.5,3987.4,0.002]
[1761472186140,7.35416468,3987.5,3987.4,0.002]
[1761472186450,6.67867195,3987.5,3987.4,0.002]
[1761472186694,7.35416468,3987.5,3987.4,0.002]
[1761472186861,6.67867195,3987.5,3987.4,0.002]
[1761472188139,0.1256,3987.5,3987.4,0.002]
[1761472188340,3.229,3987.5,3987.4,0.4504]
[1761472188567,4.7842,3987.5,3987.4,0.4504]
[1761472198170,4.9098,3987.5,3987.4,0.002]
[1761472198371,4.9098,3987.5,3987.4,0.4504]
[1761472200391,4.9098,3987.5,3987.4,0.002]
[1761472200392,5.40088,3987.5,3987.4,0.002]
[1761472201558,7.90871699,3987.5,3987.4,0.002]
[1761472202163,8.41559699,3987.5,3987.4,0.002]
[1761472202379,8.51539699,3987.5,3987.4,0.002]
[1761472209888,8.41559699,3987.5,3987.4,0.002]
[1761472210661,12.71976498,3987.5,3987.4,0.002]
[1761472211482,13.39525771,3987.5,3987.4,0.002]
[1761472217167,9.09108972,3987.5,3987.4,0.002]
[1761472217490,9.09108972,3987.5,3987.4,0.4389]
[1761472218203,9.09108972,3987.5,3987.4,0.002]
[1761472218970,9.19088972,3987.5,3987.4,0.002]
[1761472219568,9.18788972,3987.5,3987.4,0.002]
[1761472219763,9.08808972,3987.5,3987.4,0.002]
[1761472221801,9.08815622,3987.5,3987.4,0.002]
[1761472224676,8.41259699,3987.5,3987.4,0.002]
[1761472224881,9.41244304,3987.5,3987.4,0.002]
[1761472225187,9.28684304,3987.5,3987.4,0.002]
[1761472226311,9.38724452,3987.5,3987.4,0.002]
[1761472226506,8.48719847,3987.5,3987.4,0.002]
[1761472226882,9.28850761,3987.5,3987.4,0.002]
[1761472227811,8.38739847,3987.5,3987.4,0.002]
[1761472228120,8.48719847,3987.5,3987.4,0.002]
[1761472228911,12.01198857,3987.5,3987.4,0.002]
[1761472229310,11.91218857,3987.5,3987.4,0.002]
[1761472230412,8.68618857,3987.5,3987.4,0.002]
[1761472230592,8.68618857,3987.5,3987.4,0.4389]
[1761472230593,12.30700668,3987.5,3987.4,0.4389]
[1761472230795,12.81388668,3987.5,3987.4,0.4389]
[1761472231798,11.91218857,3987.5,3987.4,0.4389]
[1761472232195,11.91218857,3987.5,3987.4,0.002]
[1761472232413,12.81388668,3987.5,3987.4,0.002]
[1761472234785,9.58788668,3987.5,3987.4,0.4389]
[1761472234989,11.91118857,3987.5,3987.4,0.4389]
[1761472235190,12.03678857,3987.5,3987.4,0.4389]